bitfinex-derivatives/quotes_SOLF0:USTF0_20260202
["timestamp","ask_amount","ask_price","bid_price","bid_amount"]
[1770011766490,8.60694461,98.39,98.316,142.5609]
[1770011766796,8.60694461,98.41,98.326,151.7104]
[1770011766997,12.06421814,98.409,98.326,9.1636]
[1770011767185,12.06421814,98.408,98.326,151.7101]
[1770011767392,12.06421814,98.408,98.326,142.5465]
[1770011767793,8.60694461,98.39,98.316,9.1646]
[1770011768094,12.06516231,98.401,98.336,142.5313]
[1770011768291,284.7604,98.442,98.351,151.672]
[1770011768292,12.06516231,98.427,98.351,151.672]
[1770011769496,12.06516231,98.427,98.351,9.1613]
[1770011769895,12.06516231,98.427,98.351,151.6718]
[1770011770401,12.06730363,98.425,98.338,142.5294]
[1770011770695,12.06730363,98.425,98.327,142.5455]
[1770011770696,12.06730363,98.425,98.339,142.5283]
[1770011770889,12.06730363,98.425,98.341,142.5253]
[1770011771087,12.06730363,98.422,98.338,142.5286]
[1770011771299,12.06730363,98.422,98.34,142.5256]
[1770011771793,9.1549,98.421,98.331,142.5398]
[1770011771992,12.06666006,98.398,98.301,142.5821]
[1770011772197,12.06666006,98.398,98.31,142.569]
[1770011772398,9.1581,98.387,98.301,142.5821]
[1770011772599,9.1581,98.387,98.302,142.582]
[1770011772795,9.1581,98.387,98.292,142.5963]
[1770011772796,12.06666006,98.386,98.292,142.5963]
[1770011772990,12.06666006,98.386,98.301,142.5832]
[1770011773200,12.06666006,98.415,98.346,142.5174]
[1770011773401,8.60694461,98.43,98.35,142.5115]
[1770011773800,12.06959596,98.429,98.354,9.1611]
[1770011773999,12.06959596,98.429,98.339,142.5274]
[1770011774201,12.06959596,98.409,98.321,142.5533]
[1770011774403,12.06959596,98.402,98.323,9.1639]
[1770011774897,142.4187,98.415,98.281,548.3122]
[1770011774898,12.06959596,98.389,98.3,142.5845]
[1770011775300,9.158,98.387,98.309,9.1652]
[1770011776005,8.60694461,98.37,98.296,9.1665]
[1770011776602,8.60694461,98.4,98.27,8.60694461]
[1770011776794,8.60694461,98.4,98.318,142.5586]
[1770011777397,9.157,98.399,98.32,9.1642]
[1770011778402,21.20991003,98.399,98.32,9.1642]
[1770011778599,12.05291003,98.399,98.32,151.7197]
[1770011778802,12.05291003,98.399,98.32,9.1642]
[1770011779302,12.05238465,98.376,98.283,142.6086]
[1770011779498,12.05238465,98.375,98.283,142.6086]
[1770011779895,12.05238465,98.365,98.29,9.167]
[1770011780097,12.05238465,98.365,98.243,405.72]
[1770011780098,8.60694461,98.38,98.305,142.5774]
[1770011780299,8.60694461,98.38,98.299,142.586]
[1770011780605,8.60694461,98.38,98.313,9.1648]
[1770011780810,8.60694461,98.4,98.327,142.5451]
[1770011781002,12.05238465,98.413,98.334,142.5349]
[1770011781698,154.4826494,98.405,98.314,142.564]
[1770011781898,154.4826494,98.405,98.283,142.6089]
[1770011781899,12.0485494,98.396,98.305,142.5774]
[1770011782098,8.60694461,98.4,98.297,142.588]
[1770011782099,12.0485494,98.392,98.297,142.588]
[1770011782304,12.0485494,98.392,98.313,9.1648]
[1770011782502,12.0485494,98.415,98.333,142.5359]
[1770011782699,12.0485494,98.415,98.33,142.5408]
[1770011782900,12.0485494,98.415,98.348,9.1616]
[1770011783406,12.04671106,98.412,98.335,9.1628]
[1770011784310,12.04671106,98.412,98.349,9.1615]
[1770011784510,12.04671106,98.412,98.329,142.5427]
[1770011784710,12.04671106,98.412,98.326,142.5466]
[1770011785005,12.04671106,98.409,98.323,9.1639]
[1770011785205,142.4074,98.423,98.306,142.5759]
[1770011785206,12.04671106,98.396,98.306,142.5759]
[1770011785406,8.60694461,98.42,98.336,142.5318]
[1770011785611,8.60694461,98.42,98.344,9.1619]
[1770011785803,12.0425093,98.419,98.344,9.1619]
[1770011786201,9.1551,98.418,98.344,9.1619]
[1770011786706,21.1976093,98.418,98.344,9.1619]
[1770011787308,9.156,98.409,98.331,9.1632]
[1770011787610,12.02436634,98.408,98.331,9.1632]
[1770011788304,9.1562,98.407,98.331,9.1632]
[1770011788504,12.02436634,98.399,98.331,9.1632]
[1770011788705,12.02436634,98.394,98.317,9.1645]
[1770011788913,12.02436634,98.393,98.317,9.1645]
[1770011789205,8.60694461,98.4,98.318,142.558]
[1770011789612,8.60694461,98.4,98.338,9.1625]
[1770011789808,12.02152646,98.407,98.338,9.1625]
[1770011790311,12.02152646,98.395,98.305,142.5766]
[1770011790517,12.02152646,98.395,98.306,142.5751]
[1770011791316,12.02366881,98.389,98.309,9.1652]
[1770011791711,12.02366881,98.389,98.315,142.5627]
[1770011792021,12.02366881,98.412,98.343,142.5222]
[1770011792522,12.02366881,98.412,98.333,142.5363]
[1770011792726,12.02366881,98.406,98.314,142.5638]
[1770011793018,12.02366881,98.399,98.312,142.5674]
[1770011793519,12.02366881,98.399,98.302,142.581]
[1770011793520,12.00944089,98.393,98.316,9.1646]
[1770011794116,12.00944089,98.374,98.281,142.6117]
[1770011794312,12.00944089,98.353,98.263,142.6372]
[1770011794514,12.00944089,98.336,98.246,142.6627]
[1770011794716,8.60694461,98.34,98.268,151.7999]
[1770011795518,12.00944089,98.357,98.268,151.7999]
[1770011795714,12.00487574,98.356,98.263,142.6379]
[1770011795921,12.00487574,98.356,98.266,142.6332]
[1770011796319,142.5093,98.353,98.268,9.1691]
[1770011796521,12.00487574,98.352,98.273,142.6238]
[1770011796721,12.00487574,98.352,98.263,142.6381]
[1770011796920,12.00487574,98.352,98.276,9.1683]
[1770011797220,12.00487574,98.352,98.283,142.6095]
[1770011797420,12.00487574,98.352,98.286,9.1674]
[1770011797823,12.01215464,98.379,98.286,142.6052]
[1770011798332,12.01215464,98.377,98.299,9.1661]
[1770011798820,9.1589,98.378,98.273,142.6238]
[1770011798821,8.60694461,98.36,98.281,9.1678]
[1770011799023,8.60694461,98.36,98.195,44.21969043]
[1770011799024,12.01215464,98.346,98.239,142.6727]
[1770011799225,12.01215464,98.346,98.237,25.15611494]
[1770011799226,12.01215464,98.346,98.28,142.6135]
[1770011799518,8.60694461,98.36,98.284,9.1675]
[1770011799719,8.60694461,98.36,98.284,151.7742]
[1770011800219,12.01609532,98.359,98.27,9.1689]
[1770011800424,12.01609532,98.354,98.27,9.1689]
[1770011800824,12.01609532,98.354,98.263,142.6374]
[1770011800825,8.60694461,98.34,98.256,151.8175]
[1770011801022,12.01609532,98.338,98.256,9.1701]
[1770011801222,12.01609532,98.338,98.256,151.8182]
[1770011801535,12.02037101,98.359,98.274,142.6222]
[1770011802017,12.02037101,98.357,98.277,9.1682]
[1770011802217,12.02037101,98.348,98.258,142.6458]
[1770011802414,12.02037101,98.344,98.259,142.6441]
[1770011802616,142.5057,98.355,98.263,9.1696]
[1770011802617,20.62731562,98.34,98.263,9.1696]
[1770011802818,12.02037101,98.339,98.25,142.6566]
[1770011803020,8.60694461,98.34,98.262,9.1696]
[1770011803021,12.02037101,98.337,98.262,9.1696]
[1770011803220,12.02037101,98.337,98.22,142.7006]
[1770011803221,12.02037101,98.319,98.225,142.693]
[1770011803424,12.02037101,98.319,98.24,142.6717]
[1770011803728,12.02037101,98.319,98.24,9.1717]
[1770011804219,12.03230281,98.318,98.24,9.1717]
[1770011805020,12.03230281,98.316,98.227,9.1729]
[1770011805420,12.03230281,98.316,98.233,142.6817]
[1770011805624,12.03230281,98.316,98.239,9.1718]
[1770011805925,12.03230281,98.316,98.224,142.6949]
[1770011806122,12.03403384,98.314,98.224,142.6949]
[1770011806528,8.60694461,98.32,98.207,142.7197]
[1770011806529,12.03403384,98.312,98.225,9.173]
[1770011806727,12.03403384,98.294,98.202,142.7262]
[1770011806925,12.03403384,98.294,98.211,142.7139]
[1770011807125,12.03403384,98.294,98.204,142.7229]
[1770011807126,12.03335337,98.318,98.229,142.6877]
[1770011807325,12.03335337,98.303,98.21,142.7151]
[1770011807524,12.03335337,98.296,98.204,142.7229]
[1770011807730,12.03335337,98.295,98.206,9.1749]
[1770011808029,12.03335337,98.287,98.206,9.1749]
[1770011808425,9.1675,98.286,98.206,9.1749]
[1770011808621,12.03335337,98.285,98.206,9.1749]
[1770011808930,12.03335337,98.285,98.219,9.1736]
[1770011809632,11.9721073,98.311,98.23,9.1726]
[1770011810331,11.9721073,98.311,98.243,9.1714]
[1770011811127,9.1637,98.326,98.255,9.1702]
[1770011811332,11.9721073,98.332,98.255,9.1702]
[1770011811827,11.96747774,98.33,98.255,9.1702]
[1770011813128,8.60694461,98.32,98.225,142.693]
[1770011813432,11.96613187,98.297,98.201,142.7273]
[1770011814021,11.96613187,98.275,98.16,33.76305955]
[1770011814223,11.96613187,98.259,98.172,142.7704]
[1770011814420,11.96613187,98.254,98.161,142.7854]
[1770011814632,8.60694461,98.26,98.176,142.7639]
[1770011814633,11.96613187,98.251,98.176,142.7639]
[1770011814829,11.96613187,98.251,98.179,142.7597]
[1770011815231,8.60694461,98.26,98.193,9.176]
[1770011815428,11.96430073,98.274,98.193,142.7392]
[1770011815737,11.96430073,98.274,98.203,142.7257]
[1770011816131,11.96430073,98.274,98.193,142.7392]
[1770011816333,8.60694461,98.27,98.179,142.7597]
[1770011816529,11.96430073,98.269,98.18,142.7591]
[1770011816933,11.96430073,98.261,98.17,142.7734]
[1770011817338,11.96430073,98.261,98.179,142.7604]
[1770011817529,11.96430073,98.261,98.187,9.1766]
[1770011819034,9.17,98.259,98.174,9.1779]
[1770011819236,12.00640821,98.258,98.174,9.1779]
[1770011819740,12.00772018,98.249,98.161,142.7861]
[1770011819943,12.00772018,98.249,98.162,142.7852]
[1770011820434,8.62933385,98.23,98.149,142.8035]
[1770011820741,12.00772018,98.261,98.198,142.7319]
[1770011820935,12.00772018,98.261,98.179,142.7604]
[1770011821141,12.00772018,98.249,98.159,142.789]
[1770011821335,12.00772018,98.249,98.175,142.7658]
[1770011821535,12.00772018,98.249,98.175,9.1778]
[1770011822742,12.00772018,98.249,98.175,151.9431]
[1770011822937,142.5812,98.303,98.196,142.7345]
[1770011823142,12.00318788,98.289,98.197,142.733]
[1770011823439,12.00318788,98.289,98.21,9.1745]
[1770011824242,11.98952866,98.315,98.238,142.6745]
[1770011824537,11.98952866,98.315,98.227,142.6904]
[1770011824839,11.98952866,98.369,98.279,142.614]
[1770011825037,11.98952866,98.366,98.274,142.6222]
[1770011825234,8.62933385,98.37,98.274,9.1685]
[1770011825235,11.97160425,98.355,98.274,9.1685]
[1770011825435,11.97160425,98.349,98.258,142.645]
[1770011825634,11.97160425,98.349,98.248,142.6591]
[1770011825635,11.97160425,98.349,98.261,142.6414]
[1770011825943,11.97160425,98.349,98.276,9.1683]
[1770011826438,11.97160425,98.349,98.244,142.6652]
[1770011826439,11.97160425,98.334,98.244,142.6652]
[1770011826740,11.97160425,98.334,98.228,142.6891]
[1770011827040,11.97160425,98.334,98.245,142.6641]
[1770011827240,11.97160425,98.319,98.228,142.6891]
[1770011827439,11.97588875,98.304,98.21,142.7149]
[1770011828236,11.97597627,98.295,98.218,9.1738]
[1770011828945,11.97597627,98.299,98.211,142.7133]
[1770011829138,11.97597627,98.299,98.214,142.7088]
[1770011829334,11.97597627,98.299,98.215,142.7081]
[1770011830042,8.62933385,98.32,98.248,142.6596]
[1770011830340,11.98483336,98.316,98.225,142.6928]
[1770011830536,11.98483336,98.316,98.207,142.7195]
[1770011830537,8.62933385,98.3,98.21,142.7154]
[1770011830741,11.98483336,98.299,98.214,142.709]
[1770011831041,11.98483336,98.299,98.207,142.7195]
[1770011831042,11.98483336,98.299,98.215,142.7076]
[1770011831342,11.98254073,98.294,98.215,9.174]
[1770011831549,142.5804,98.304,98.185,142.751]
[1770011831550,11.98254073,98.279,98.185,142.751]
[1770011831843,11.98254073,98.277,98.185,142.751]
[1770011832437,9.1689,98.271,98.186,151.9265]
[1770011832642,11.98254073,98.277,98.15,8.62933385]
[1770011832643,11.98254073,98.277,98.199,142.7313]
[1770011833942,11.96151907,98.299,98.207,151.8944]
[1770011834940,11.96151907,98.297,98.22,9.1735]
[1770011835141,11.96151907,98.29,98.19,142.7435]
[1770011835343,11.96151907,98.279,98.192,142.7413]
[1770011835540,11.95852053,98.274,98.192,151.9174]
[1770011835842,11.95852053,98.259,98.147,142.8068]
[1770011836142,151.27373385,98.26,98.147,142.8068]
[1770011836143,11.95852053,98.237,98.161,9.1791]
[1770011836940,11.95852053,98.219,98.145,9.1806]
[1770011837137,142.7348,98.197,98.106,142.8655]
[1770011837338,151.38993385,98.18,98.087,142.8936]
[1770011837545,11.95856222,98.174,98.08,152.0902]
[1770011837748,11.95856222,98.174,98.094,142.884]
[1770011837941,142.702,98.22,98.111,142.8593]
[1770011837942,11.95856222,98.197,98.111,142.8593]
[1770011838148,11.95856222,98.197,98.122,9.1827]
[1770011838342,11.95856222,98.195,98.104,142.8684]
[1770011838541,11.95856222,98.193,98.101,142.874]
[1770011838745,11.95856222,98.193,98.107,152.0487]
[1770011839150,11.95856222,98.193,98.119,142.8479]
[1770011839351,11.95856222,98.193,98.12,9.1829]
[1770011839547,11.95856222,98.193,98.131,142.8291]
[1770011839849,11.95992345,98.211,98.126,9.1823]
[1770011840352,11.95992345,98.191,98.1,9.1848]
[1770011840542,11.95992345,98.191,98.106,142.8666]
[1770011840746,11.95992345,98.191,98.035,203.58]
[1770011840747,11.95992345,98.191,98.12,152.0292]
[1770011840943,11.95992345,98.191,98.126,142.8368]
[1770011841145,11.95992345,98.219,98.124,142.8395]
[1770011841946,11.95992345,98.219,98.138,152.0016]
[1770011842343,11.95992345,98.219,98.138,152.0008]
[1770011842742,11.95992345,98.219,98.151,9.18]
[1770011842945,11.96486502,98.244,98.161,142.7868]
[1770011843150,11.96486502,98.244,98.169,142.7744]
[1770011843349,11.96486502,98.244,98.138,142.8195]
[1770011843350,11.96486502,98.244,98.15,142.8019]
[1770011843548,11.96545591,98.239,98.15,142.8019]
[1770011843747,11.96545591,98.239,98.141,142.8159]
[1770011843748,11.96545591,98.237,98.159,9.1793]
[1770011844251,11.96545591,98.219,98.122,142.8434]
[1770011844851,11.96545591,98.217,98.135,152.0057]
[1770011845048,11.96545591,98.217,98.127,142.8359]
[1770011845252,11.96545591,98.217,98.151,142.8011]
[1770011845454,549.0111,98.255,98.166,142.779]
[1770011845455,11.96455367,98.241,98.166,142.779]
[1770011845851,11.96455367,98.241,98.172,142.7703]
[1770011846447,11.96455367,98.241,98.172,9.178]
[1770011846752,11.96455367,98.241,98.173,142.7684]
[1770011847246,11.96455367,98.241,98.168,142.7765]
[1770011847247,8.62933385,98.26,98.193,9.1761]
[1770011847559,11.97380385,98.279,98.193,151.9149]
[1770011847761,11.97380385,98.26,98.175,9.1778]
[1770011847954,11.97380385,98.249,98.155,142.7955]
[1770011848153,11.97380385,98.249,98.156,142.7927]
[1770011848852,142.6757,98.238,98.156,9.1795]
[1770011849057,11.97380385,98.235,98.138,142.8199]
[1770011849355,11.97665402,98.219,98.143,9.1808]
[1770011849561,142.7217,98.206,98.112,142.858]
[1770011849851,11.97665402,98.189,98.112,142.8575]
[1770011850249,11.97665402,98.189,98.114,9.1834]
[1770011850647,11.97665402,98.189,98.114,152.0377]
[1770011851248,11.97665402,98.212,98.13,142.8316]
[1770011851959,11.97665402,98.212,98.138,152.0007]
[1770011852657,17.80293385,98.22,98.105,142.8669]
[1770011852658,11.98684021,98.201,98.105,142.8669]
[1770011852858,142.7284,98.202,98.098,142.8779]
[1770011852859,11.98684021,98.199,98.106,142.8658]
[1770011853260,9.1762,98.193,98.109,9.1839]
[1770011853853,11.98757019,98.182,98.096,9.1852]
[1770011854059,11.98757019,98.179,98.096,9.1852]
[1770011854257,11.98757019,98.176,98.096,9.1852]
[1770011854456,11.98757019,98.172,98.096,9.1852]
[1770011855862,12.00882086,98.195,98.114,142.855]
[1770011856057,12.00882086,98.195,98.115,142.8538]
[1770011856252,12.00882086,98.193,98.105,142.868]
[1770011856759,12.00882086,98.193,98.121,9.1828]
[1770011857559,9.1763,98.192,98.108,9.184]
[1770011857751,12.00882086,98.193,98.106,142.8668]
[1770011857953,8.62933385,98.19,98.106,9.1842]
[1770011858155,12.01056531,98.189,98.106,9.1842]
[1770011858950,9.1766,98.188,98.106,9.1842]
[1770011859157,12.01056531,98.189,98.118,9.1831]
[1770011859548,12.05435402,98.187,98.105,9.1843]
[1770011860462,8.62933385,98.19,98.09,142.8893]
[1770011860463,12.05435402,98.182,98.093,9.1854]
[1770011860660,12.05435402,98.182,98.09,142.8893]
[1770011860661,12.05435402,98.182,98.105,142.8675]
[1770011861460,12.09580213,98.204,98.124,142.8405]
[1770011861661,12.09580213,98.204,98.117,142.8495]
[1770011861855,12.09580213,98.204,98.108,142.8638]
[1770011862059,12.09580213,98.2,98.116,9.1833]
[1770011862260,12.09580213,98.2,98.117,142.8503]
[1770011863062,12.09580213,98.2,98.128,9.1821]
[1770011863759,12.15739927,98.224,98.129,142.8327]
[1770011863959,12.15739927,98.224,98.156,142.794]
[1770011864564,12.15739927,98.224,98.168,9.1784]
[1770011864865,12.15739927,98.221,98.131,142.8295]
[1770011865060,8.62933385,98.23,98.081,30.59]
[1770011865262,30.59,98.301,98.227,142.6899]
[1770011865477,142.5965,98.293,98.192,142.7415]
[1770011865761,142.591,98.296,98.186,142.7491]
[1770011865762,16.46237575,98.276,98.186,9.1767]
[1770011865966,16.46237575,98.276,98.186,151.9264]
[1770011866360,16.46237575,98.276,98.2,9.1754]
[1770011866557,16.46237575,98.259,98.164,142.781]
[1770011866762,16.46237575,98.257,98.164,142.781]
[1770011867056,142.6472,98.258,98.164,142.781]
[1770011867257,54.78500251,98.38,98.292,142.5957]
[1770011867464,54.78500251,98.38,98.309,142.5716]
[1770011867668,54.78500251,98.38,98.292,142.5957]
[1770011867859,54.78500251,98.38,98.312,142.5674]
[1770011868258,142.426,98.41,98.273,142.6227]
[1770011868259,142.4754,98.376,98.273,142.6227]
[1770011868466,54.78500251,98.358,98.255,142.6493]
[1770011868863,54.78500251,98.358,98.265,142.6348]
[1770011869064,54.78500251,98.356,98.265,9.1694]
[1770011869262,142.5647,98.314,98.216,142.7069]
[1770011869468,54.72717918,98.298,98.223,142.6961]
[1770011869668,54.72717918,98.298,98.223,9.1733]
[1770011870767,54.72717918,98.298,98.243,142.6669]
[1770011871567,54.72717918,98.298,98.253,142.6525]
[1770011871771,54.78200888,98.347,98.253,142.6525]
[1770011872269,54.78200888,98.329,98.246,9.1711]
[1770011872870,54.78200888,98.329,98.233,142.6809]
[1770011873268,54.78200888,98.325,98.233,142.6809]
[1770011873469,54.74510743,98.308,98.213,142.711]
[1770011873661,54.74510743,98.306,98.203,142.7252]
[1770011874064,54.74510743,98.306,98.207,151.8943]
[1770011874769,151.7409,98.307,98.207,151.8943]
[1770011874770,54.74510743,98.301,98.207,151.8943]
[1770011875971,54.74510743,98.301,98.193,142.7395]
[1770011875972,54.74510743,98.301,98.22,151.8744]
[1770011876371,54.74510743,98.301,98.22,9.1735]
[1770011876966,54.74510743,98.301,98.22,151.8733]
[1770011877163,54.74510743,98.301,98.231,151.8562]
[1770011877362,54.74731637,98.334,98.234,142.6804]
[1770011877574,54.74731637,98.334,98.245,142.6647]
[1770011878463,54.74731637,98.334,98.245,151.836]
[1770011878869,54.74731637,98.334,98.259,151.8138]
[1770011879070,54.74731637,98.334,98.269,142.6285]
[1770011879672,54.74731637,98.334,98.259,142.6439]
[1770011880374,54.74731637,98.334,98.26,151.8122]
[1770011880575,54.74731637,98.334,98.267,142.632]
[1770011880764,54.74731637,98.334,98.23,8.60906514]
[1770011880765,39.19906514,98.37,98.272,142.6244]
[1770011880965,54.74478459,98.384,98.306,142.5753]
[1770011881171,54.74478459,98.408,98.332,142.5383]
[1770011881377,54.74478459,98.408,98.332,9.1631]
[1770011881572,54.76044541,98.374,98.276,142.6197]
[1770011881776,54.76044541,98.36,98.253,142.6528]
[1770011881972,54.76044541,98.36,98.27,151.7959]
[1770011882277,54.76044541,98.36,98.28,142.6131]
[1770011882873,54.76044541,98.36,98.27,142.627]
[1770011883169,8.60906514,98.37,98.24,548.8711]
[1770011883170,54.76044541,98.384,98.317,142.5601]
[1770011883871,54.76044541,98.384,98.28,8.60906514]
[1770011883872,8.60906514,98.43,98.345,142.5194]
[1770011884078,54.77433385,98.431,98.364,142.4909]
[1770011884271,8.60906514,98.45,98.331,142.5391]
[1770011884272,54.77433385,98.429,98.352,9.1612]
[1770011884477,54.77433385,98.429,98.352,151.6707]
[1770011885274,54.77433385,98.429,98.338,142.5295]
[1770011885475,54.77433385,98.429,98.357,142.5017]
[1770011885777,54.77433385,98.429,98.364,9.1602]
[1770011885976,54.77433385,98.429,98.364,151.6516]
[1770011886178,142.3376,98.471,98.375,142.4748]
[1770011886179,54.77622807,98.452,98.375,142.4748]
[1770011886376,54.77622807,98.452,98.377,9.1589]
[1770011886980,54.77622807,98.449,98.362,9.1603]
[1770011887276,54.77622807,98.449,98.362,151.655]
[1770011887479,54.77622807,98.449,98.375,9.1591]
[1770011888678,54.77893147,98.446,98.36,9.1605]
[1770011888872,54.77893147,98.429,98.328,142.5432]
[1770011889075,54.77893147,98.429,98.332,142.5372]
[1770011889775,54.77904191,98.409,98.323,142.5514]
[1770011889977,54.77904191,98.409,98.324,142.5498]
[1770011890175,54.77904191,98.409,98.332,142.5373]
[1770011890576,54.77904191,98.409,98.332,151.7004]
[1770011891381,54.77904191,98.409,98.332,9.1631]
[1770011891576,54.77904191,98.409,98.342,142.5235]
[1770011891781,54.80687372,98.43,98.364,142.4914]
[1770011893275,54.80687372,98.43,98.37,9.1596]
[1770011893583,54.84918104,98.452,98.384,142.4628]
[1770011893781,54.84918104,98.452,98.398,9.1569]
[1770011893982,284.5922,98.5,98.398,9.1569]
[1770011893983,54.84918104,98.474,98.398,9.1569]
[1770011894180,54.84918104,98.474,98.398,151.5997]
[1770011894475,54.84918104,98.474,98.391,142.4519]
[1770011894677,54.84918104,98.469,98.384,9.1582]
[1770011895382,54.90208232,98.464,98.384,9.1582]
[1770011895780,54.90208232,98.464,98.384,151.6213]
[1770011895975,54.90208232,98.464,98.401,151.595]
[1770011896285,54.90208232,98.489,98.401,142.4383]
[1770011896582,54.90208232,98.489,98.415,151.5737]
[1770011897481,54.90208232,98.489,98.428,9.1541]
[1770011898181,54.90208232,98.489,98.42,9.1549]
[1770011899079,54.91379877,98.479,98.391,9.1576]
[1770011899381,54.91691494,98.467,98.377,142.4731]
[1770011899683,54.91691494,98.467,98.378,9.1588]
[1770011901388,8.60906514,98.47,98.378,9.1588]
[1770011901389,54.93318366,98.465,98.378,9.1588]
[1770011901988,54.93318366,98.438,98.34,142.5259]
[1770011902179,54.93318366,98.438,98.349,142.5125]
[1770011902385,54.93318366,98.438,98.352,142.509]
[1770011902687,54.93318366,98.438,98.371,9.1595]
[1770011902886,54.93318366,98.438,98.371,151.6414]
[1770011903287,54.93318366,98.438,98.371,9.1595]
[1770011903590,54.93318366,98.438,98.359,9.1606]
[1770011903785,8.60906514,98.43,98.359,9.1606]
[1770011904192,54.93318366,98.438,98.359,151.6591]
[1770011904797,54.93318366,98.438,98.345,142.5194]
[1770011905592,9.1535,98.436,98.358,9.1607]
[1770011905791,54.94657745,98.435,98.358,9.1607]
[1770011907990,64.10195332,98.431,98.346,9.1618]
[1770011908292,54.94795332,98.409,98.321,142.5536]
[1770011909087,54.94795332,98.408,98.321,9.1641]
[1770011909596,54.95070615,98.398,98.332,9.1631]
[1770011909991,54.95070615,98.422,98.34,142.5262]
[1770011910196,54.95070615,98.422,98.352,142.5087]
[1770011910395,54.95070615,98.422,98.354,142.5056]
[1770011910594,54.95070615,98.449,98.385,9.1582]
[1770011910993,54.95070615,98.471,98.391,142.4522]
[1770011911296,54.95070615,98.471,98.409,151.5821]
[1770011911691,54.95070615,98.471,98.409,9.1559]
[1770011911893,54.97958908,98.469,98.382,142.4652]
[1770011912091,54.97958908,98.469,98.394,142.4476]
[1770011912294,54.97958908,98.469,98.41,142.4254]
[1770011913097,54.97958908,98.492,98.427,142.4007]
[1770011913391,54.97958908,98.492,98.423,142.4063]
[1770011913592,54.97958908,98.492,98.438,9.1532]
[1770011913895,54.98210665,98.516,98.456,142.3578]
[1770011914099,54.98210665,98.549,98.461,151.5026]
[1770011914297,54.98210665,98.546,98.451,142.3658]
[1770011914494,54.98210665,98.546,98.453,142.3619]
[1770011914897,54.98210665,98.54,98.453,9.1518]
[1770011915599,54.95806286,98.529,98.436,9.1534]
[1770011915996,54.95806286,98.525,98.436,9.1534]
[1770011916201,63.567128,98.51,98.421,151.5638]
[1770011916406,63.567128,98.53,98.447,142.3715]
[1770011916695,63.567128,98.53,98.462,9.151]
[1770011916903,54.95806286,98.53,98.471,142.3369]
[1770011917305,54.95806286,98.53,98.461,9.1511]
[1770011917498,54.95806286,98.53,98.462,142.3491]
[1770011917804,54.95806286,98.53,98.455,142.3593]
[1770011918003,54.95806286,98.53,98.468,142.3413]
[1770011918203,54.95806286,98.53,98.462,142.3496]
[1770011918603,54.95806286,98.53,98.456,9.1516]
[1770011918998,54.95806286,98.53,98.456,151.5092]
[1770011919703,54.95806286,98.53,98.456,9.1516]
[1770011920496,54.95806286,98.53,98.441,9.1529]
[1770011920701,54.95806286,98.53,98.441,151.5326]
[1770011921300,54.95806286,98.53,98.455,151.5115]
[1770011921502,54.97768642,98.556,98.477,142.3279]
[1770011921995,142.1849,98.577,98.457,142.3568]
[1770011921996,54.97768642,98.549,98.457,142.3568]
[1770011923296,54.93202552,98.544,98.457,151.5083]
[1770011923804,54.93202552,98.544,98.457,9.1515]
[1770011924400,197.17512552,98.537,98.443,9.1527]
[1770011924591,197.17512552,98.537,98.427,142.3995]
[1770011924592,54.93202552,98.522,98.427,142.3995]
[1770011924798,54.93202552,98.516,98.42,142.41]
[1770011924993,142.2887,98.505,98.412,9.1556]
[1770011925195,142.2712,98.517,98.401,142.4385]
[1770011925196,54.93202552,98.489,98.401,142.4385]
[1770011925392,54.91281574,98.486,98.388,142.4563]
[1770011925599,54.91281574,98.483,98.399,9.1569]
[1770011926499,54.91281574,98.483,98.399,151.5981]
[1770011926706,54.91281574,98.483,98.399,9.1569]
[1770011926901,54.91281574,98.454,98.36,142.4968]
[1770011927106,54.91281574,98.449,98.36,142.4968]
[1770011927705,54.94375239,98.445,98.355,9.161]
[1770011928706,142.3618,98.455,98.355,9.161]
[1770011928707,54.94375239,98.429,98.355,9.161]
[1770011929207,54.94375239,98.429,98.363,9.1602]
[1770011929610,54.93918436,98.452,98.387,142.4578]
[1770011930007,54.93918436,98.452,98.388,142.4562]
[1770011930404,54.93918436,98.452,98.38,142.4683]
[1770011930604,54.93918436,98.452,98.37,142.4832]
[1770011930800,54.93918436,98.452,98.377,142.4719]